Cogmind - Beta 9.1 @@@ ROGUE MODE // 2019.11.11 @ 10:12:07 Player: Rilt Result: Destroyed by Y-45 Defender with Heavy Assault Rifle Performance ------------- Evolutions (1) 500 Regions Visited (2) 400 Robots Destroyed (17) 85 Value Destroyed (435) 435 Prototype IDs (0) 0 Alien Tech Used (0) 0 Bonus (0) 0 TOTAL SCORE: 1420 Bonus ------- None Cogmind --------- Core Integrity 0/400 Matter 300/300 Energy 160/160 System Corruption 0% Temperature Cool (9) Location -9/Materials Parts ------- Power (1) Light Nuclear Core Propulsion (4) Aluminum Leg Aluminum Leg Utility (2) Small Storage Unit Weapon (2) Scythe Scythe Inventory (6) Improved Heat Sink Heavy Particle Cannon Heavy Particle Cannon Light Assault Rifle Light Assault Rifle Peak State ------------ Power Light Nuclear Core Propulsion Aluminum Leg Aluminum Leg Aluminum Leg Aluminum Leg Utility Small Storage Unit Weapon Scythe Scythe Inventory Improved Heat Sink Heavy Particle Cannon Heavy Particle Cannon Light Assault Rifle Light Assault Rifle [Rating: 15] Favorites ----------- Power Ion Engine Engine Ion Engine Power Core Light Nuclear Core Propulsion Aluminum Leg Leg Aluminum Leg Utility Small Storage Unit Storage Small Storage Unit Protection Hardened Light Armor Plating Weapon Light Assault Rifle Energy Gun Medium Laser Energy Cannon Heavy Particle Cannon Ballistic Gun Light Assault Rifle Slashing Weapon Scythe Build | -11 -10 -9 ------- Run | Scr Mat Mat Slots Evolved 2 | . . 2 Power . | . . . Propulsion 2 | . . 2 Utility . | . . . Weapon . | . . . Parts Attached 18 | 7 . 11 Power 3 | 1 . 2 Engine 2 | 1 . 1 Core 1 | . . 1 Reactor . | . . . Propulsion 6 | 2 . 4 Treads . | . . . Leg 6 | 2 . 4 Wheel . | . . . Hover . | . . . Flight . | . . . Utility 2 | 1 . 1 Device . | . . . Storage 1 | 1 . . Processor . | . . . Hackware . | . . . Protection 1 | . . 1 Artifact . | . . . Weapon 7 | 3 . 4 Energy Gun 1 | 1 . . Energy Cannon 2 | . . 2 Ballistic Gun 2 | 2 . . Ballistic Cannon . | . . . Launcher . | . . . Special Weapon . | . . . Impact Weapon . | . . . Slashing Weapon 2 | . . 2 Piercing Weapon . | . . . Special Melee Weapon . | . . . Unidentified Prototypes . | . . . Parts Lost 6 | . 1 5 Power 2 | . 1 1 Propulsion 3 | . . 3 Utility 1 | . . 1 Weapon . | . . . Highest Loss Streak 2 | . 1 2 Average Slot Usage (%) 80 | . 81 79 Engine 5 | . 10 2 Core 3 | . . 5 Leg 32 | . 28 34 Storage 11 | . 14 11 Protection 3 | . . 4 Energy Cannon 3 | . . 5 Ballistic Gun 9 | . 28 1 Slashing Weapon 9 | . . 14 Naked Turns . | . . . Heaviest Build 26 | 12 11 26 Greatest Support 30 | 20 20 30 Greatest Overweight (x) 3 | 3 . 1 Average Overweight (x) . | . . . Largest Inventory Capacity 6 | 6 6 6 Average Capacity 5 | 5 6 6 Most Carried 6 | 2 5 6 Average Carried 4 | 1 3 5 Final Capacity 6 | 6 6 6 Final Carried 5 | 2 5 5 Class Distribution -------------------- 100% | Mutant Dominant Class ---------------- Mutant | -10/Materials Mutant | -9/Materials Resources | -11 -10 -9 ----------- Run | Scr Mat Mat Matter Collected 407 | 216 87 104 Remotely . | . . . Salvage Created 527 | . 144 383 Parts 23 | . 5 18 Haulers Intercepted . | . . . Recyclers Shooed . | . . . Parts Field Recycled . | . . . Retrieved Matter . | . . . Parts Self-Destructed . | . . . Prevented . | . . . Kills | -11 -10 -9 ------- Run | Scr Mat Mat Combat Hostiles Destroyed 17 | . 5 12 Melee 10 | . . 10 Guns 5 | . 5 . Cannons 2 | . . 2 Classes Destroyed 3 | . 2 1 Swarmer 7 | . 3 4 Grunt 9 | . 2 7 Brawler 1 | . . 1 Best Kill Streak 6 | . 2 6 Combat Bots Only 6 | . 2 6 Max Kills in Single Turn 1 | . 1 1 Gunslinging . | . . . Exploded . | . . . Melee 1 | . . 1 Uniques/NPCs Destroyed . | . . . Combat | -11 -10 -9 -------- Run | Scr Mat Mat Damage Taken 1514 | . 347 1167 Core 465 | . 60 405 Absorbed by Shields . | . . . Core Remaining (%) 88 | 100 76 . Volleys Fired 28 | . 21 7 Largest 2 | . 2 2 Hottest 150 | . 40 150 Shots Fired 56 | . 42 14 Gun 42 | . 42 . Cannon 14 | . . 14 Launcher . | . . . Special . | . . . Kinetic 42 | . 42 . Thermal 14 | . . 14 Explosive . | . . . Electromagnetic . | . . . Robot Hit Streak 6 | . 6 3 Robot Miss Streak 6 | . 4 6 Penetration Max . | . . . Secondary Targets 2 | . 2 . Max Gunslinging Chain 1 | . 1 . Shots Hit Robots 50 | . 25 25 Core Hits 22 | . 10 12 Critical Hits 2 | . . 2 Critical Kills 2 | . . 2 Critical Parts Destroyed . | . . . Melee Attacks 33 | . . 33 Impact . | . . . Slashing 33 | . . 33 Piercing . | . . . Sneak Attacks 1 | . . 1 Combat Hostiles . | . . . Follow-up Attacks 5 | . . 5 Damage Inflicted 1010 | . 189 821 Guns 189 | . 189 . Cannons 125 | . . 125 Explosions . | . . . Melee 696 | . . 696 Ramming . | . . . Kinetic 189 | . 189 . Thermal 125 | . . 125 Explosive . | . . . Electromagnetic . | . . . Impact . | . . . Slashing 696 | . . 696 Piercing . | . . . Highest Corruption . | . . . Average Corruption . | . . . Corruption Purged . | . . . Overload Shots . | . . . Overflow Damage 103 | . . 103 Projectiles 5 | . . 5 Explosions . | . . . Melee 98 | . . 98 Knockbacks . | . . . Impact . | . . . Kinetic . | . . . Secondary . | . . . Self-Inflicted Damage . | . . . Shots . | . . . Rammed . | . . . Targets Rammed . | . . . Kicked . | . . . Crushed . | . . . Highest Temperature 595 | . 18 595 Average Temperature 257 | . 11 289 Received Heat Transfer 288 | . 57 231 Effects 9 | . . 9 Shutdowns 2 | . . 2 Interference 1 | . . 1 Matter Decay 1 | . . 1 Short Circuit 1 | . . 1 Damage (minor) 2 | . . 2 Damage (core) 2 | . . 2 Siege Activations . | . . . Robots Corrupted . | . . . Combat Hostiles . | . . . Parts Fried . | . . . Impact Corruptions . | . . . Robots Melted . | . . . Combat Hostiles . | . . . Parts Melted 1 | . . 1 Heat Transferred 185 | . . 185 Parts Sabotaged . | . . . Parts Stolen . | . . . Parts Stripped . | . . . Power Chain Reactions . | . . . Missiles Intercepted . | . . . Alert | -11 -10 -9 ------- Run | Scr Mat Mat Peak Influence 359 | . 140 359 Average Influence 136 | . 60 212 Maximum Alert Level 1 | . . 1 Low Security (%) 67 | . . . Level 1 32 | . . . Level 2 . | . . . Level 3 . | . . . Level 4 . | . . . Level 5 . | . . . High Security . | . . . Max Security . | . . . Squads Dispatched 1 | . . 1 Investigation . | . . . Extermination . | . . . Reinforcement 1 | . . 1 Assault . | . . . Garrison . | . . . Intercept . | . . . Construction Impeded . | . . . Haulers Reinforced . | . . . Stealth | -11 -10 -9 --------- Run | Scr Mat Mat Distress Signals . | . . . Communications Jammed . | . . . Distress Signals . | . . . Times Spotted 28 | . 7 21 Peak Tracking Total 8 | . 4 8 Tactical Retreats 1 | . . 1 Traps | -11 -10 -9 ------- Run | Scr Mat Mat Traps Triggered . | . . . Indirectly . | . . . Trap Hack Attempts . | . . . Triggered . | . . . Disarmed . | . . . Reprogrammed . | . . . Reused . | . . . Traps Extracted . | . . . Installed . | . . . Triggered . | . . . Machines | -11 -10 -9 ---------- Run | Scr Mat Mat Machines Disabled 1 | . . 1 Max in Single Turn 1 | . . 1 Machines Sabotaged . | . . . Garrisons Compromised . | . . . Overloaded Fab Kills . | . . . Fab Network Shutdowns . | . . . Hacking | -11 -10 -9 --------- Run | Scr Mat Mat Machines Accessed 1 | . . 1 Terminals . | . . . Fabricators . | . . . Repair Stations 1 | . . 1 Recycling Units . | . . . Scanalyzers . | . . . Garrison Access . | . . . Total Hacks 2 | . . 2 Successful 2 | . . 2 Failed . | . . . Catastrophic . | . . . Database Lockouts . | . . . Manual . | . . . Terminals . | . . . Fabricators . | . . . Repair Stations 2 | . . 2 Recycling Units . | . . . Scanalyzers . | . . . Garrison Access . | . . . Terminal Hacks . | . . . Fabricator Hacks . | . . . Repair Station Hacks 2 | . . 2 Scan Component 1 | . . 1 Repair 1 | . . 1 Recycling Unit Hacks . | . . . Scanalyzer . | . . . Garrison Access Hacks . | . . . Unauthorized Hacks . | . . . Terminals . | . . . Fabricators . | . . . Repair Stations . | . . . Recycling Units . | . . . Scanalyzers . | . . . Garrison Access . | . . . Data Cores Recovered . | . . . Used . | . . . Hacking Detections . | . . . Full Trace Events . | . . . Feedback Events . | . . . Feedback Blocked . | . . . Robot Schematics Acquired . | . . . Robots Built . | . . . Matter . | . . . Time . | . . . Total Robot Build Rating . | . . . Part Schematics Acquired . | . . . Parts Built . | . . . Matter . | . . . Time . | . . . Total Part Build Rating . | . . . Parts Repaired 1 | . . 1 Time 26 | . . 26 Parts Recycled . | . . . Recycled Matter . | . . . Retrieved Matter . | . . . Retrieved Components . | . . . Parts Scanalyzed . | . . . Part Schematics Acquired . | . . . Parts Damaged . | . . . Bothacking | -11 -10 -9 ------------ Run | Scr Mat Mat Used RIF Installer . | . . . Robots Hacked . | . . . Non-combat . | . . . Combat . | . . . Robot Hacks Applied . | . . . Relay Couplers Released . | . . . Robots Rewired . | . . . Allies Hacked . | . . . Hacks Repelled . | . . . Allies | -11 -10 -9 -------- Run | Scr Mat Mat Total Allies . | . . . Largest Group . | . . . Highest-Rated Group . | . . . Highest-Rated Ally . | . . . Total Orders . | . . . Ally Attacks . | . . . Total Damage . | . . . Kills . | . . . Allies Corrupted . | . . . Allies Melted . | . . . Intel | -11 -10 -9 ------- Run | Scr Mat Mat Robot Analysis Total . | . . . Derelict Logs Recovered . | . . . Drone Launches . | . . . Drone Recoveries . | . . . Exploration | -11 -10 -9 ------------- Run | Scr Mat Mat Turns Passed 713 | 112 196 405 Spaces Moved 403 | 83 116 204 Core 17 | 17 . . Treads . | . . . Legs 386 | 66 116 204 Wheels . | . . . Hover . | . . . Flight . | . . . Fastest Speed 50 | 50 120 120 Average Speed 119 | 115 120 120 Slowest Speed 200 | 200 120 150 Overloaded Moves . | . . . Propulsion Burnouts . | . . . Robots Hopped . | . . . Cave-ins Triggered . | . . . Exploration Rate (%) 16 | 4 27 17 Regions Visited 2 Branch Regions . Pre-discovered Areas . | . . . Known Exits Taken . | . . . Unknown Exits Taken 2 | 1 1 . Scrap Searched . | . . . Spaces Dug . | . . . Terrain Destroyed 6 | . . 6 Melee . | . . . Projectile 6 | . . 6 AOE . | . . . Actions | -11 -10 -9 --------- Run | Scr Mat Mat Total 545 | 96 139 310 Wait 58 | 4 . 54 Move 401 | 82 115 204 Hop . | . . . Pick Up 13 | 3 3 7 Fast Attach 8 | 5 . 3 Attach 7 | 1 . 6 Detach . | . . . Swap 3 | 1 . 2 Drop 3 | . . 3 Fire 28 | . 21 7 Melee 24 | . . 24 Ram . | . . . Kick . | . . . Crush . | . . . Escape Stasis . | . . . Rewire . | . . . Trap . | . . . Miscellaneous . | . . . Route ------- -11/Scrapyard -10/Materials -9/Materials History --------- Turn | Location | Event 31 | -11/Scrapyard | Discovered new exit (range 15) 113 | -11/Scrapyard | Entered Materials 265 | -10/Materials | Discovered new exit (range 10) 304 | -10/Materials | Build established: Mutant 309 | -10/Materials | Entered another Materials area 309 | -9/Materials | Evolved 2 slots: Propulsion x2 414 | -9/Materials | Repaired Aluminum Leg 457 | -9/Materials | Core integrity fell below 50% 710 | -9/Materials | Core integrity fell below 20% 714 | -9/Materials | Destroyed by Y-45 Defender with Heavy Assault Rifle Last Messages --------------- 00520_ Acquired 10 matter. 00605_ B-36 Bruiser destroyed. 00616_ Sneak attack on K-01 Serf. 00616_ Destroyed Med. Matter Pod. 00616_ Destroyed Lgt. Ion Engine. 00618_ Aluminum Leg destroyed. 00620_ Ion Engine severed. 00620_ Scythe follow-up attack on G-34 Mercenary. 00620_ G-34 Mercenary destroyed. 00622_ K-01 Serf collects debris. 00623_ M-13 Machinist fits Backup Power I on K-01 Serf. 00626_ K-01 Serf collects debris. 00660_ K-01 Serf cleans the Material Processor. 00684_ Scythe follow-up attack on W-16 Scout. 00692_ K-01 Serf cleans the Material Processor. 00702_ Scythe follow-up attack on S-10 Pest. 00704_ Aluminum Leg destroyed. 00704_ K-01 Serf cleans the Material Processor. 00711_ S-10 Pest destroyed. 00713_ K-01 Serf cleans the Material Processor. Map ----- +----------------------------------------------------+ | ??????????????????????????# # """ | | ??????????????????????????# # """ | | ??????????????????????????############ # """ | | ???????????????????????????# # # | | ???????????????????????????#! = # ######## | | ???????????????????????????# #% #??????? | | ???????????????????????????# [[! #* ######## | | ???????????????????????????# []^ +=% | | ???????????????????????????# [] # ######### | | ???????????????????????????# #####???????? | | ???????????????????????????# #???????????? | | ???????????????????????????#######+###???????????? | | ?????????????????????????????????# #?????????????? | | ?????????????????????????????????# #?????????????? | | ?????????????????????????????????# ###???????????? | | ????????????????????????########## #???????????? | | ??????? ########## # +???????????? | | ??????? Y k""" + #???????????? | | ??????? ########## """"" # #???????????? | | ????????????????????????# """"" # #???????????? | | ????????????????????????# """"" # #???????????? | | ????????????????????????# """ + #???????????? | | ????????????????????????#sY # #???????????? | | ????????????????????????# # #???????????? | | ????????????????????????# # #???????????? | | ????????????????????????#@###/#### #???????????? | | ??????????????????????? % # """ #???????????? | | ????????????????????? =s# ^"Y" #???????????? | | ????????????????????# """s/ #???????????? | | ????????????????????#= """ # #???????????? | | ????????????????????# """ # ???????????? | | ????????????????????# #! #??????????? | | ????????????????????###+#### ???????????? | | ???????????????????????????# #??????????? | | ???????????????????????????# # #??????????? | | ??????????????????????????? !# #??????????? | | ??????????????????????????? !# ???????????? | | ???????????????????????????!!!!##? ?????????????? | | ???????????????????????????#####?? ?????????????? | | ??????????????????????????????????? ?????????????? | | ?????????????????????????????????????????????????? | | ?????????????????????????????????????????????????? | | ?????????????????????????????????????????????????? | | ?????????????????????????????????????????????????? | | ?????????????????????????????????????????????????? | | ?????????????????????????????????????????????????? | | ?????????????????????????????????????????????????? | | ?????????????????????????????????????????????????? | | ?????????????????????????????????????????????????? | | ?????????????????????????????????????????????????? | +----------------------------------------------------+ Best States ------------- Heat Dissipation 28 Energy Generation 14 Energy Capacity 250 Matter Stores 300 Matter Capacity 300 Sight Range 16 Terrain Scan Density 10 Armor Coverage 150 Evasion (%) 40 Item Schematics ----------------- None Robot Schematics ------------------ None Fabricated ------------ Nothing Alien Tech Used ----------------- None Achievements -------------- None Challenges ------------ None Game ------ Seed ArchitectLargeClaws Manual? 0 Play Time 00:10:10 Cumulative 12.3 hours Start 2019.11.11 @ 10:05:52 End 2019.11.11 @ 10:12:07 Sessions 1 Manual Loads 0 Difficulty Rogue Special Mode None Game No. 23 Rogue 23 Adventurer 0 Explorer 0 Win Type - Total 0 Types 0/0/0/0/0/0/0 Lore% 19 Gallery% 22 Achievement% 17 Wizard Run 0 Options --------- ASCII 0 Keyboard 0 Movement Mouse Keybinds 0 Fullscreen 1 Font 20/SmallcapsGlow Map View 66x50 Tactical HUD 1 Map Filters NONE Filters NONE Steam 1 RUN: 8c1e6bc8-af51-4124-abff-98248981a092